bitfinex-derivatives/quotes_SOLF0:USTF0_20250409
["timestamp","ask_amount","ask_price","bid_price","bid_amount"]
[1744190483725,9.44255425,106.77,106.74,28.28022457]
[1744190484123,9.44255425,106.77,106.74,18.90762457]
[1744190484513,0.07195425,106.77,106.74,18.90762457]
[1744190484919,0.07195425,106.77,106.74,28.28032457]
[1744190485526,9.44235425,106.77,106.74,18.90762457]
[1744190486129,0.07195425,106.77,106.74,18.90762457]
[1744190486735,0.07195425,106.77,106.74,28.28012457]
[1744190486937,0.07195425,106.77,106.74,18.90762457]
[1744190487535,9.3713,106.76,106.74,18.90762457]
[1744190488337,9.3722,106.75,106.73,55.96762457]
[1744190488729,9.3722,106.75,106.73,18.90762457]
[1744190488930,9.3717,106.76,106.73,18.90762457]
[1744190490253,9.373,106.74,106.71,69.88232457]
[1744190490633,9.44139201,106.74,106.71,69.88232457]
[1744190491035,9.44139201,106.74,106.71,60.50722457]
[1744190491339,9.44139201,106.74,106.71,23.46722457]
[1744190491540,9.44139201,106.74,106.71,32.84252457]
[1744190491737,9.3743,106.73,106.71,23.46722457]
[1744190491941,0.06839201,106.74,106.7,4.6318]
[1744190492244,0.06839201,106.74,106.69,18.90762457]
[1744190492634,0.06839201,106.74,106.69,28.28462457]
[1744190492943,37.10839201,106.74,106.69,18.90762457]
[1744190494444,9.3751,106.72,106.69,18.90762457]
[1744190494846,9.43531717,106.72,106.69,18.90762457]
[1744190495243,9.43531717,106.72,106.69,28.28492457]
[1744190495544,9.43531717,106.72,106.69,18.90762457]
[1744190496344,0.06021717,106.72,106.69,18.90762457]
[1744190496553,0.06021717,106.72,106.69,28.28462457]
[1744190496741,0.06021717,106.72,106.69,18.90762457]
[1744190497049,9.3761,106.71,106.69,18.90762457]
[1744190497548,9.3761,106.71,106.68,14.1861]
[1744190498349,9.3761,106.71,106.68,4.8079]
[1744190498949,9.3761,106.71,106.68,14.1857]
[1744190499350,9.3761,106.71,106.7,12.14433752]
[1744190500451,9.43551717,106.72,106.7,12.14433752]
[1744190500651,0.06021717,106.72,106.71,12.14433752]
[1744190501051,9.43501717,106.72,106.71,12.14433752]
[1744190503049,9.43501717,106.72,106.59,629.54365475]
[1744190503050,28.12,106.65,106.59,629.54365475]
[1744190503249,12.14433752,106.63,106.59,629.54365475]
[1744190503444,12.20544206,106.63,106.59,629.54365475]
[1744190503654,0.06110454,106.63,106.59,629.54365475]
[1744190504044,9.3845,106.61,106.6,37.06]
[1744190504253,12.20544206,106.63,106.59,629.54365475]
[1744190504652,9.3853,106.6,106.59,629.54365475]
[1744190505254,9.3863,106.59,106.57,37.06]
[1744190505958,0.06619459,106.61,106.57,56.08075698]
[1744190506559,9.45119459,106.61,106.57,56.08075698]
[1744190506958,0.06619459,106.61,106.57,56.08075698]
[1744190507157,0.06619459,106.61,106.58,37.08]
[1744190507359,0.06619459,106.61,106.59,37.08]
[1744190507550,192.72751289,106.6,106.59,37.08]
[1744190508458,168.85001289,106.6,106.59,37.08]
[1744190508956,161.60411289,106.6,106.59,37.08]
[1744190509159,161.60411289,106.6,106.59,5.64887099]
[1744190509459,170.98941289,106.6,106.59,5.64887099]
[1744190510053,278.51434532,106.6,106.59,5.64887099]
[1744190510253,9.3862,106.59,106.55,458.55095107]
[1744190510558,0.0651422,106.58,106.56,37.08]
[1744190511560,212.29168265,106.6,106.57,28.40875698]
[1744190512058,212.29168265,106.6,106.57,10.14472818]
[1744190512260,212.29168265,106.6,106.56,37.08]
[1744190512754,0.06954327,106.59,106.57,0.05928567]
[1744190514061,9.3871,106.58,106.57,0.05928567]
[1744190514359,19.09030025,106.59,106.54,37.06]
[1744190514963,0.06954327,106.59,106.54,37.06]
[1744190515161,9.3897,106.55,106.54,37.06]
[1744190516262,9.45614549,106.56,106.54,37.06]
[1744190516661,107.52493243,106.6,106.55,19.02075698]
[1744190517860,9.44830807,106.59,106.56,9.44926585]
[1744190518159,0.06170807,106.59,106.57,37.08]
[1744190518561,9.44840807,106.59,106.57,37.08]
[1744190519861,59.73607357,106.6,106.58,19.02075698]
[1744190520159,52.49007357,106.6,106.58,23.65355698]
[1744190520363,30.75027357,106.6,106.58,23.65355698]
[1744190520658,382.15562819,106.62,106.58,33.03355698]
[1744190520849,4.3745,106.67,106.58,33.03355698]
[1744190520850,4.3745,106.67,106.61,19.02075698]
[1744190521049,4.3745,106.67,106.62,37.08]
[1744190521262,0.06386388,106.65,106.63,0.06783467]
[1744190521463,9.44516388,106.65,106.63,0.06783467]
[1744190521961,0.06386388,106.65,106.63,0.06783467]
[1744190522357,9.44526388,106.65,106.63,0.06783467]
[1744190522759,0.06386388,106.65,106.64,9.3818]
[1744190523157,0.06386388,106.65,106.63,0.06783467]
[1744190523362,9.44526388,106.65,106.64,37.08]
[1744190523757,0.06386388,106.65,106.64,37.08]
[1744190524956,4.4356,106.71,106.64,56.10075698]
[1744190525156,9.377,106.7,106.67,9.3785]
[1744190525455,9.377,106.7,106.68,37.06]
[1744190525858,4.4356,106.71,106.68,37.06]
[1744190526254,0.0632625,106.7,106.68,37.11983109]
[1744190526452,0.0632625,106.7,106.68,0.05983109]
[1744190526656,9.3774,106.69,106.68,0.05983109]
[1744190527064,9.3788,106.68,106.66,37.06]
[1744190527268,0.0632625,106.7,106.66,37.06]
[1744190527658,9.3792,106.67,106.66,37.06]
[1744190528057,4.4356,106.71,106.66,37.06]
[1744190528258,0.06583614,106.68,106.66,37.06]
[1744190528666,0.06583614,106.68,106.66,37.12251018]
[1744190530770,0.06583614,106.68,106.67,9.3792]
[1744190533263,0.06583614,106.68,106.66,65.52276716]
[1744190533569,19.02075698,106.77,106.67,19.02075698]
[1744190533773,9.2232,106.74,106.67,19.02075698]
[1744190534072,9.3752,106.72,106.69,9.3769]
[1744190534257,9.3752,106.72,106.7,37.06]
[1744190534671,9.43731966,106.72,106.7,37.11965763]
[1744190535170,0.06211966,106.72,106.7,37.11965763]
[1744190536372,0.06211966,106.72,106.71,9.3756]
[1744190537368,4.5785,106.79,106.71,514.16075698]
[1744190537578,4.5785,106.79,106.74,19.02075698]
[1744190537875,9.369,106.79,106.76,9.3711]
[1744190538075,4.6402,106.81,106.75,37.04]
[1744190538371,4.6402,106.81,106.76,19.02075698]
[1744190538574,0.06053977,106.79,106.77,0.0661379]
[1744190538777,0.06053977,106.79,106.78,37.04]
[1744190539572,9.42913977,106.79,106.78,37.04]
[1744190539773,0.06053977,106.79,106.78,37.04]
[1744190540275,0.06053977,106.79,106.78,46.4095]
[1744190540666,4.711,106.85,106.78,37.04]
[1744190540972,9.2065,106.85,106.78,562.37576216]
[1744190541171,9.3667,106.82,106.78,562.37576216]
[1744190541375,9.2065,106.85,106.78,562.37576216]
[1744190541776,9.367,106.81,106.78,562.37576216]
[1744190542074,9.367,106.81,106.8,0.06527223]
[1744190542375,9.43552808,106.81,106.8,0.06527223]
[1744190547477,9.3686,106.79,106.78,532.06]
[1744190550281,9.3686,106.79,106.78,532.12927405]
[1744190553281,9.3682,106.8,106.78,532.12927405]
[1744190554483,0.06852808,106.81,106.78,532.12927405]
[1744190554982,9.43572808,106.81,106.78,541.49857405]
[1744190555183,9.43572808,106.81,106.78,532.12927405]
[1744190555584,9.43572808,106.81,106.78,541.49867405]
[1744190556485,0.06852808,106.81,106.79,9.3685]
[1744190556682,0.06852808,106.81,106.78,532.12927405]
[1744190557683,9.43572808,106.81,106.78,532.12927405]
[1744190558285,9.43572808,106.81,106.78,541.49837405]
[1744190559082,9.3678,106.8,106.78,532.12927405]
[1744190559284,0.06852808,106.81,106.78,532.12927405]
[1744190560186,0.06852808,106.81,106.79,9.3685]
[1744190560482,0.06852808,106.81,106.78,532.12927405]
[1744190560986,0.06852808,106.81,106.79,9.3686]
[1744190561983,0.06852808,106.81,106.78,551.06941443]
[1744190562986,0.06852808,106.81,106.8,9.3677]
[1744190564997,0.06852808,106.81,106.8,28.30784038]
[1744190567300,0.06852808,106.81,106.79,9.3682]
[1744190569901,0.06852808,106.81,106.78,560.43841443]
[1744190570904,0.06852808,106.81,106.79,9.3685]
[1744190571599,0.06852808,106.81,106.78,560.43861443]
[1744190571900,0.06852808,106.81,106.78,551.06941443]
[1744190572704,0.06852808,106.81,106.78,560.43831443]
[1744190573203,0.06852808,106.81,106.78,551.06941443]
[1744190573403,0.06852808,106.81,106.78,532.12927405]
[1744190574400,9.3686,106.79,106.78,0.06927405]
[1744190574700,0.06852808,106.81,106.72,513.48014038]
[1744190574905,4.4029,106.78,106.74,36.98]
[1744190575509,9.3721,106.75,106.74,36.98]
[1744190576500,0.06867939,106.77,106.74,36.98]
[1744190577305,9.3721,106.75,106.74,36.98]
[1744190577506,0.06867939,106.77,106.74,36.98]
[1744190578003,9.3716,106.76,106.74,36.98]
[1744190582506,9.3716,106.76,106.73,9.43719931]
[1744190582806,0.06867939,106.77,106.73,0.06349931]
[1744190582807,9.3723,106.75,106.73,0.06349931]
[1744190584307,9.3723,106.75,106.73,9.43739931]
[1744190584909,9.3723,106.75,106.73,0.06349931]
[1744190585210,0.06867939,106.77,106.73,0.06349931]
[1744190585703,0.06867939,106.77,106.73,9.43729931]
[1744190585909,9.3714,106.76,106.74,37.0]
[1744190586109,0.06867939,106.77,106.74,37.0]
[1744190586302,9.3721,106.75,106.74,37.0]
[1744190588103,9.3721,106.75,106.73,0.06349931]
[1744190588312,0.06867939,106.77,106.73,0.06349931]
[1744190588910,9.3728,106.75,106.73,0.06349931]
[1744190590711,0.06867939,106.77,106.73,0.06349931]
[1744190591410,9.3727,106.75,106.73,0.06349931]
[1744190591604,0.06867939,106.77,106.73,0.06349931]
[1744190591806,18.94014038,106.76,106.69,37.0]
[1744190592309,18.94014038,106.74,106.69,37.0]
[1744190592607,9.3761,106.71,106.69,37.0]
[1744190593007,9.44286583,106.71,106.69,37.06119307]
[1744190593414,9.3765,106.7,106.69,37.06119307]
[1744190593808,9.3765,106.7,106.69,0.06119307]
[1744190594810,9.378,106.69,106.67,531.68]
[1744190595212,0.06676583,106.71,106.68,12.14907308]
[1744190595414,0.06676583,106.71,106.67,531.68]
[1744190595718,9.3769,106.7,106.67,531.68]
[1744190595915,9.3769,106.7,106.68,0.05995792]
[1744190596716,9.44286583,106.71,106.68,9.43775792]
[1744190597016,0.06676583,106.71,106.68,0.05995792]
[1744190597415,9.44246583,106.71,106.69,9.377]
[1744190598020,0.06676583,106.71,106.7,37.0]
[1744190598516,0.06676583,106.71,106.7,46.3765]
[1744190599719,0.06676583,106.71,106.7,37.0]
[1744190600418,9.44236583,106.71,106.7,37.0]
[1744190600718,0.06676583,106.71,106.7,37.0]
[1744190600915,0.06676583,106.71,106.7,46.3765]
[1744190602420,0.06676583,106.71,106.7,37.0]
[1744190603215,0.06676583,106.71,106.7,46.3765]
[1744190603724,0.06676583,106.71,106.7,37.0]
[1744190605523,9.44236583,106.71,106.7,37.0]
[1744190606626,9.3766,106.7,106.68,56.02177482]
[1744190606922,0.06676583,106.71,106.68,37.03995792]
[1744190607116,9.44276583,106.71,106.68,46.41785792]
[1744190610929,0.06676583,106.71,106.68,56.02177482]
[1744190611721,0.06676583,106.71,106.7,9.3765]
[1744190613127,0.06676583,106.71,106.69,9.3768]
[1744190615332,0.06676583,106.71,106.7,12.14365931]
[1744190615628,0.06676583,106.71,106.7,21.52015931]
[1744190615932,0.06676583,106.71,106.7,12.14365931]
[1744190616831,0.06676583,106.71,106.7,21.52015931]
[1744190622639,0.06676583,106.71,106.68,37.03995792]
[1744190622846,12.14365931,106.7,106.68,0.05995792]
[1744190623031,12.14365931,106.69,106.64,192.1507731]
[1744190623233,9.3809,106.65,106.64,192.1507731]
[1744190624540,9.44324569,106.66,106.64,192.1507731]
[1744190625941,9.44324569,106.66,106.64,36.98]
[1744190627841,0.06274569,106.66,106.64,46.3614]
[1744190628036,0.06274569,106.66,106.64,36.98]
[1744190628233,0.06274569,106.66,106.65,18.99950874]
[1744190628533,8.8931,106.73,106.65,18.99950874]
[1744190628735,8.8931,106.73,106.67,18.99950874]
[1744190628933,8.8931,106.73,106.68,37.0]
[1744190629134,9.3762,106.71,106.68,46.3777]
[1744190629544,9.43623691,106.71,106.69,9.3773]
[1744190630346,0.06003691,106.71,106.68,37.06159935]
[1744190631344,0.06003691,106.71,106.68,46.43949935]
[1744190632144,0.06003691,106.71,106.69,9.3769]
[1744190632744,9.43613691,106.71,106.69,9.3769]
[1744190633441,0.06003691,106.71,106.7,9.3765]
[1744190634644,0.06003691,106.71,106.69,28.37650874]
[1744190635146,9.43583691,106.71,106.69,28.37650874]
[1744190636345,0.06003691,106.71,106.69,18.99950874]
[1744190636947,0.06003691,106.71,106.7,9.3765]
[1744190638838,0.06003691,106.71,106.69,28.37640874]
[1744190639250,0.06003691,106.71,106.7,9.3765]
[1744190641346,0.06003691,106.71,106.68,37.06159935]
[1744190641952,9.3774,106.69,106.68,37.06159935]
[1744190642850,9.3774,106.69,106.68,0.06159935]
[1744190643057,9.3792,106.67,106.66,36.96]
[1744190643254,9.3792,106.67,106.65,36.96]
[1744190643448,13.7347,106.7,106.65,36.96]
[1744190643758,9.38,106.67,106.65,36.96]
[1744190644059,9.43961122,106.67,106.65,36.96]
[1744190644849,9.43961122,106.67,106.65,46.3404]
[1744190644850,0.05961122,106.67,106.65,46.3404]
[1744190645055,0.05961122,106.67,106.65,36.96]
[1744190645555,0.05961122,106.67,106.66,9.38]
[1744190647357,9.43941122,106.67,106.65,36.96]
[1744190648058,0.05961122,106.67,106.65,36.96]
[1744190648556,9.43941122,106.67,106.65,36.96]
[1744190648958,9.38,106.66,106.65,36.96]
[1744190649161,0.05961122,106.67,106.65,36.96]
[1744190649552,9.43941122,106.67,106.65,36.96]
[1744190651561,9.38,106.66,106.65,36.96]
[1744190652263,0.05961122,106.67,106.65,36.96]
[1744190652264,9.43951122,106.67,106.65,36.96]
[1744190652766,0.05961122,106.67,106.65,36.96]
[1744190653063,9.3804,106.66,106.63,55.97950874]
[1744190653252,9.3804,106.66,106.64,12.15728418]
[1744190654562,0.05961122,106.67,106.65,12.15728418]
[1744190654862,0.05961122,106.67,106.66,36.98]
[1744190655361,9.43881122,106.67,106.66,36.98]
[1744190656666,0.05961122,106.67,106.66,36.98]
[1744190657161,9.43881122,106.67,106.66,36.98]
[1744190657564,0.05961122,106.67,106.64,36.98]
[1744190657767,12.2168954,106.67,106.62,531.94]
[1744190657971,0.05961122,106.67,106.62,544.09728418]
[1744190658570,9.3819,106.64,106.62,544.09728418]
[1744190659176,0.06791925,106.64,106.62,553.48078418]
[1744190659779,0.06791925,106.64,106.63,12.15728418]
[1744190661078,9.44971925,106.64,106.63,12.15728418]
[1744190661877,0.06791925,106.64,106.63,12.15728418]
[1744190662477,9.44971925,106.64,106.63,12.15728418]
[1744190663476,9.3827,106.63,106.62,531.94]
[1744190663677,9.3827,106.63,106.62,544.09728418]
[1744190663876,0.06791925,106.64,106.62,544.09728418]
[1744190664079,9.45011925,106.64,106.63,12.15728418]
[1744190664977,0.06791925,106.64,106.63,12.15728418]
[1744190665376,0.06791925,106.64,106.63,21.53998418]
[1744190669184,4.6798,106.69,106.65,9.3808]
[1744190669384,4.6798,106.69,106.65,60.09808418]
[1744190669587,9.3792,106.67,106.65,60.09808418]
[1744190670175,9.3792,106.67,106.65,60.16548534]
[1744190670383,9.45093114,106.67,106.65,60.16548534]
[1744190671087,9.45093114,106.67,106.66,9.38]
[1744190671088,0.07173114,106.67,106.66,9.38]
[1744190671387,0.07173114,106.67,106.66,21.53728418]
[1744190679593,0.07173114,106.67,106.66,12.15728418]
[1744190680093,9.45093114,106.67,106.66,12.15728418]
[1744190680293,0.07173114,106.67,106.66,12.15728418]
[1744190680688,0.07173114,106.67,106.66,21.53728418]
[1744190681291,0.07173114,106.67,106.66,12.15728418]
[1744190681899,0.07173114,106.67,106.66,21.53728418]
[1744190683398,9.45093114,106.67,106.66,12.15728418]
[1744190683614,0.07173114,106.67,106.65,50.78468534]
[1744190683901,9.38,106.66,106.65,50.78468534]
[1744190684600,9.45123114,106.67,106.65,60.16518534]
[1744190685105,0.07173114,106.67,106.65,50.78468534]
[1744190685700,9.45133114,106.67,106.65,60.16508534]
[1744190686597,9.45133114,106.67,106.66,9.38]
[1744190686801,0.07173114,106.67,106.66,21.53728418]
[1744190692298,0.07173114,106.67,106.66,9.38]
[1744190692499,0.07173114,106.67,106.66,21.53728418]
[1744190697909,9.1007,106.7,106.66,12.15728418]
[1744190698211,9.377,106.7,106.68,12.15728418]
[1744190698513,9.377,106.7,106.69,12.15728418]
[1744190699914,0.07061513,106.71,106.68,12.22483073]
[1744190700510,0.07061513,106.71,106.68,0.06754655]
[1744190701510,9.3774,106.69,106.68,0.06754655]
[1744190702105,12.15728418,106.7,106.65,12.15728418]
[1744190702305,4.7507,106.68,106.65,12.15728418]
[1744190702504,4.3644,106.67,106.65,12.15728418]
[1744190703106,9.38,106.66,106.65,12.22366134]
[1744190715318,9.38,106.66,106.65,0.06637716]
[1744190715521,9.3809,106.65,106.64,23.0585]
[1744190715717,4.42867463,106.67,106.62,49.69728418]
[1744190716012,12.15728418,106.66,106.61,12.15728418]
[1744190716227,12.15728418,106.65,106.6,37.54]
[1744190716411,12.15728418,106.64,106.59,58.28830967]
[1744190716611,4.4924,106.63,106.59,58.28830967]
[1744190716812,16.72045067,106.63,106.59,46.13102549]
[1744190717122,9.3853,106.6,106.59,46.13102549]
[1744190718115,9.3862,106.59,106.58,155.1707731]
[1744190718316,12.15728418,106.59,106.57,350.88000619]
[1744190719319,9.3871,106.58,106.57,350.88000619]
[1744190719511,9.3871,106.58,106.57,258.6179552]
[1744190719711,0.06638893,106.59,106.54,21.54748418]
[1744190719913,0.06638893,106.59,106.55,12.15728418]
[1744190720118,9.3883,106.57,106.54,9.3902]
[1744190720317,12.15728418,106.62,106.56,12.15728418]
[1744190720514,12.15728418,106.62,106.57,12.15728418]
[1744190720714,9.45573164,106.6,106.57,12.15728418]
[1744190720915,0.06973164,106.6,106.57,21.54518418]
[1744190721213,9.3871,106.58,106.57,12.15728418]
[1744190721422,9.3871,106.58,106.56,37.0]
[1744190722319,9.3867,106.59,106.56,46.3885]
[1744190723009,0.06973164,106.6,106.56,37.0]
[1744190723218,0.06973164,106.6,106.54,56.04361915]
[1744190723519,9.3886,106.57,106.54,65.43371915]
[1744190723814,9.3886,106.57,106.54,56.04361915]
[1744190724020,0.07029676,106.57,106.54,56.04361915]
[1744190725022,0.07029676,106.57,106.55,9.3894]
[1744190725917,0.07029676,106.57,106.54,56.04361915]
[1744190727322,9.45869676,106.57,106.55,9.3892]
[1744190728027,9.45869676,106.57,106.54,65.43371915]
[1744190728521,0.07029676,106.57,106.54,65.43371915]
[1744190728920,9.3892,106.56,106.54,46.4101]
[1744190729217,9.3892,106.56,106.54,37.02]
[1744190729523,9.3898,106.55,106.53,9.391]
[1744190729925,0.07029676,106.57,106.52,63.16521915]
[1744190730125,9.3884,106.57,106.52,63.16521915]
[1744190730324,0.06658356,106.56,106.54,19.02361915]
[1744190730622,9.3875,106.58,106.55,37.02]
[1744190731121,9.3875,106.58,106.56,9.3887]
[1744190731732,9.45101043,106.58,106.56,9.45291793]
[1744190733430,9.388,106.57,106.56,0.06421793]
[1744190738214,9.45111043,106.58,106.56,0.06421793]
[1744190738821,9.45111043,106.58,106.56,2.77421793]
[1744190739318,9.45111043,106.58,106.56,12.16261793]
[1744190739625,0.06351043,106.58,106.57,37.02]
[1744190739821,0.06351043,106.58,106.57,46.408]
[1744190740026,0.06351043,106.58,106.57,37.02]
[1744190740226,9.45061043,106.58,106.57,37.02]
[1744190741826,9.45061043,106.58,106.56,15.06591793]
[1744190743225,9.45061043,106.58,106.57,12.17413753]
[1744190743428,0.06351043,106.58,106.57,21.56213753]
[1744190743629,0.06351043,106.58,106.57,12.17413753]
[1744190744030,0.06351043,106.58,106.57,21.56213753]
[1744190744326,103.78239636,106.75,106.57,12.17413753]
[1744190744327,18.7609,106.66,106.57,12.17413753]
[1744190744631,9.3839,106.62,106.6,12.17413753]
[1744190744833,9.3839,106.62,106.61,37.02]
[1744190745036,9.3839,106.62,106.61,49.19413753]
[1744190746632,9.3839,106.62,106.61,37.02]
[1744190746831,9.3844,106.61,106.6,0.0621863]
[1744190749634,9.3841,106.62,106.6,9.4474863]
[1744190749822,0.06926396,106.63,106.6,0.0621863]
[1744190750628,0.06926396,106.63,106.6,2.9114863]
[1744190750828,9.3839,106.62,106.6,12.2962863]
[1744190751029,0.06926396,106.63,106.6,2.9114863]
[1744190751529,9.3844,106.61,106.6,2.9114863]
[1744190751733,9.3844,106.61,106.6,39.9314863]
[1744190752335,9.3844,106.61,106.6,0.0621863]
[1744190762750,0.06926396,106.63,106.6,9.4468863]
[1744190763150,0.06926396,106.63,106.61,37.02]
[1744190763451,9.3836,106.62,106.6,9.4468863]
[1744190763855,9.3844,106.61,106.6,0.0621863]
[1744190764856,9.3839,106.62,106.6,9.4474863]
[1744190765855,0.06926396,106.63,106.6,0.0621863]
[1744190766055,0.06926396,106.63,106.61,4.9036]
[1744190766654,9.45236396,106.63,106.61,4.9036]
[1744190766853,9.45236396,106.63,106.62,37.02]
[1744190770056,21.37344254,106.69,106.62,37.02]
[1744190770354,2.3605,106.69,106.62,37.02]
[1744190770557,9.3805,106.66,106.63,9.3819]
[1744190770855,9.3805,106.66,106.62,37.02]
[1744190771054,9.3805,106.66,106.64,9.3817]
[1744190771253,0.07190903,106.65,106.64,21.53902853]
[1744190771965,14.51782853,106.69,106.64,12.15732853]
[1744190772151,12.15732853,106.68,106.63,12.15732853]
[1744190772953,12.15732853,106.68,106.64,0.06195575]
[1744190773153,0.0617205,106.67,106.64,0.06195575]
[1744190773557,9.3809,106.65,106.64,0.06195575]
[1744190774655,9.384,106.62,106.6,37.0]
[1744190775054,9.384,106.62,106.6,46.385]
[1744190775455,9.3821,106.64,106.6,37.0]
[1744190775656,9.3821,106.64,106.62,9.3832]
[1744190775856,0.0609828,106.63,106.62,9.3832]
[1744190778061,0.0609828,106.63,106.61,14.0489615]
[1744190778564,0.0609828,106.63,106.62,9.3836]
[1744190779559,0.0609828,106.63,106.61,14.0487615]
[1744190780067,0.0609828,106.63,106.62,9.3836]
[1744190784464,9.3813,106.65,106.63,9.3822]
[1744190784665,9.3813,106.65,106.63,46.3822]
[1744190784965,9.3799,106.67,106.63,55.99993894]
[1744190785465,0.05901302,106.66,106.64,0.06189276]
[1744190787667,9.43921302,106.66,106.64,9.44319276]
[1744190788258,9.3809,106.65,106.64,0.06189276]
[1744190806177,9.3836,106.62,106.61,39.2892]
[1744190806376,9.3836,106.62,106.61,2.2892]
[1744190806769,9.3836,106.62,106.6,12.16359843]
[1744190806977,9.3844,106.61,106.59,49.16359843]
[1744190807171,9.3844,106.61,106.6,12.16359843]
[1744190807377,9.44897358,106.61,106.59,58.60992955]
[1744190809875,9.44897358,106.61,106.6,12.16359843]
[1744190812080,9.3853,106.6,106.59,49.22382955]
[1744190812282,0.06457358,106.61,106.59,37.06023112]
[1744190812572,9.44957358,106.61,106.59,37.06023112]
[1744190813384,9.3853,106.6,106.59,37.06023112]
[1744190813677,0.06457358,106.61,106.59,37.06023112]
[1744190813980,9.44987358,106.61,106.59,37.06023112]
[1744190814277,9.44987358,106.61,106.59,46.44633112]
[1744190814479,0.06457358,106.61,106.59,37.06023112]
[1744190815072,9.3853,106.6,106.59,37.06023112]
[1744190816280,9.3853,106.6,106.59,49.22382955]
[1744190818769,9.3853,106.6,106.59,37.06023112]
[1744190820580,9.3853,106.6,106.59,0.06023112]
[1744190825281,12.16359843,106.6,106.55,49.16359843]
[1744190825684,9.3875,106.58,106.55,49.16359843]
[1744190825982,12.16359843,106.6,106.55,58.55299843]
[1744190826180,49.16359843,106.61,106.55,49.16359843]
[1744190826383,0.06205936,106.59,106.56,0.07021547]
[1744190826781,9.388,106.57,106.56,0.07021547]
[1744190834078,12.16359843,106.57,106.47,37.0]
[1744190834283,12.16359843,106.54,106.49,12.16359843]
[1744190834895,9.3936,106.51,106.48,23.97079843]
[1744190835198,37.0,106.55,106.45,678.90008059]
[1744190835199,12.16359843,106.5,106.45,155.08488059]
[1744190835389,9.395,106.49,106.48,0.05930247]
[1744190835586,9.395,106.49,106.47,12.16359843]
[1744190835786,9.395,106.49,106.47,12.2254023]
[1744190836786,9.395,106.49,106.47,0.06180387]
[1744190837797,9.3943,106.5,106.47,49.2454023]
[1744190838093,12.23075793,106.51,106.47,37.08180387]
[1744190838488,9.3943,106.5,106.47,49.2454023]
[1744190839092,9.3943,106.5,106.48,9.3955]
[1744190839296,0.0671595,106.51,106.48,12.16359843]
[1744190839494,12.16359843,106.55,106.49,14.49759843]
[1744190839791,9.3954,106.49,106.47,37.02]
[1744190840094,12.16359843,106.5,106.46,11.6725]
[1744190840294,9.396,106.48,106.46,11.6725]
[1744190840495,12.16359843,106.5,106.46,2.2754]
[1744190840696,0.06398872,106.48,106.46,2.34444091]
[1744190840899,9.3968,106.47,106.46,2.34444091]
[1744190842299,9.46028872,106.48,106.46,2.34444091]
[1744190842601,9.46028872,106.48,106.46,11.74194091]
[1744190844702,0.06398872,106.48,106.46,11.74194091]
[1744190845400,9.46008872,106.48,106.46,11.74194091]
[1744190846601,0.06398872,106.48,106.47,9.3968]
[1744190847000,9.3943,106.5,106.47,21.56039843]
[1744190847703,9.3943,106.5,106.48,9.3954]
[1744190847908,12.16359843,106.52,106.48,9.3954]
[1744190848206,0.06957019,106.51,106.49,0.06683722]
[1744190848509,9.46367019,106.51,106.49,0.06683722]
[1744190848710,0.06957019,106.51,106.49,0.06683722]
[1744190849009,9.3941,106.5,106.49,0.06683722]
[1744190852405,9.46337019,106.51,106.49,9.46183722]
[1744190853409,9.3941,106.5,106.49,0.06683722]
[1744190853605,0.06957019,106.51,106.49,0.06683722]
[1744190854509,9.46337019,106.51,106.49,9.46143722]
[1744190856507,9.3941,106.5,106.49,0.06683722]
[1744190856713,21.55769843,106.5,106.49,0.06683722]
[1744190859915,9.3941,106.5,106.49,0.06683722]
[1744190861616,9.46337019,106.51,106.49,0.06683722]
[1744190862013,0.06957019,106.51,106.49,0.06683722]
[1744190862313,9.3941,106.5,106.49,0.06683722]
[1744190866420,9.3941,106.5,106.49,9.46183722]
[1744190866719,9.3941,106.5,106.49,0.06683722]
[1744190867523,9.46327019,106.51,106.49,0.06683722]
[1744190867715,0.06957019,106.51,106.5,9.3941]
[1744190867917,0.06957019,106.51,106.49,37.08683722]
[1744190868115,0.06957019,106.51,106.49,49.25043565]
[1744190868320,0.06957019,106.51,106.5,9.3941]
[1744190869815,0.06957019,106.51,106.5,11.9956]
[1744190870221,9.46277019,106.51,106.5,11.9956]
[1744190870524,0.06957019,106.51,106.5,11.9956]
[1744190870720,0.06957019,106.51,106.5,2.6015]
[1744190871730,9.46277019,106.51,106.5,2.6015]
[1744190876838,0.06957019,106.51,106.5,11.9956]